[Event "*** SCC Grand Prix: Titled Tuesday Blitz"]
[Site "Chess.com"]
[Date "2020.06.02"]
[Round "9"]
[White "Grischuk"]
[Black "Saxar85"]
[Result "1-0"]
[WhiteElo "3092"]
[BlackElo "2739"]
[TimeControl "180+1"]
[EndTime "11:48:16 PDT"]
[Termination "Grischuk won on time"]

1. Nf3 {[%clk 0:03:00.9]} 1... Nf6 {[%clk 0:02:20.9]} 2. c4 {[%clk 0:03:00.2]}
2... d6 {[%clk 0:02:19.8]} 3. d4 {[%clk 0:02:58.2]} 3... Bg4 {[%clk 0:02:15.7]}
4. Nc3 {[%clk 0:02:55.2]} 4... g6 {[%clk 0:02:13.5]} 5. e4 {[%clk 0:02:52.6]}
5... Nc6 {[%clk 0:02:10.5]} 6. d5 {[%clk 0:02:37.7]} 6... Ne5 {[%clk 0:02:06.3]}
7. Be2 {[%clk 0:02:38.1]} 7... Bxf3 {[%clk 0:02:04.7]} 8. gxf3 {[%clk 0:02:39]}
8... Bg7 {[%clk 0:02:01.4]} 9. f4 {[%clk 0:02:38.5]} 9... Ned7 {[%clk 0:02:01]}
10. h4 {[%clk 0:02:39]} 10... h5 {[%clk 0:01:47.7]} 11. Be3 {[%clk 0:02:18.9]}
11... c6 {[%clk 0:01:47.1]} 12. Bd4 {[%clk 0:02:18.6]} 12... Qc7 {[%clk
0:01:28]} 13. Rg1 {[%clk 0:02:10.2]} 13... O-O-O {[%clk 0:01:08.5]} 14. f5
{[%clk 0:00:50.1]} 14... c5 {[%clk 0:01:07.8]} 15. Be3 {[%clk 0:00:46.3]} 15...
Ne5 {[%clk 0:01:07.9]} 16. fxg6 {[%clk 0:00:43.5]} 16... fxg6 {[%clk 0:01:07.4]}
17. f3 {[%clk 0:00:36.5]} 17... Bh6 {[%clk 0:00:58.4]} 18. Bxh6 {[%clk
0:00:36.2]} 18... Rxh6 {[%clk 0:00:58.2]} 19. Qd2 {[%clk 0:00:37.1]} 19... Rhh8
{[%clk 0:00:57.3]} 20. O-O-O {[%clk 0:00:37.8]} 20... a6 {[%clk 0:00:53.5]} 21.
Kb1 {[%clk 0:00:37.1]} 21... Rhf8 {[%clk 0:00:42.6]} 22. a3 {[%clk 0:00:36]}
22... Kb8 {[%clk 0:00:40.6]} 23. Ka2 {[%clk 0:00:33.9]} 23... Qd7 {[%clk
0:00:26.5]} 24. Rg3 {[%clk 0:00:33.1]} 24... Rc8 {[%clk 0:00:25.5]} 25. Rdg1
{[%clk 0:00:26.4]} 25... Rf7 {[%clk 0:00:25]} 26. Nd1 {[%clk 0:00:25.4]} 26...
Qa4 {[%clk 0:00:23.3]} 27. Ne3 {[%clk 0:00:22.6]} 27... Ka7 {[%clk 0:00:19.4]}
28. Qc1 {[%clk 0:00:20.6]} 28... b5 {[%clk 0:00:18.4]} 29. b3 {[%clk 0:00:15.8]}
29... Qa5 {[%clk 0:00:18.2]} 30. Qc2 {[%clk 0:00:16.5]} 30... Rb8 {[%clk
0:00:17.8]} 31. f4 {[%clk 0:00:16.4]} 31... Neg4 {[%clk 0:00:16.9]} 32. Bxg4
{[%clk 0:00:14.7]} 32... hxg4 {[%clk 0:00:16.9]} 33. e5 {[%clk 0:00:14.5]} 33...
Nh5 {[%clk 0:00:16.4]} 34. Rxg4 {[%clk 0:00:14.5]} 34... Nxf4 {[%clk 0:00:16.5]}
35. e6 {[%clk 0:00:13.6]} 35... Rf6 {[%clk 0:00:15.9]} 36. Rf1 {[%clk
0:00:13.6]} 36... Rbf8 {[%clk 0:00:15.3]} 37. Rgg1 {[%clk 0:00:09.3]} 37... Qb6
{[%clk 0:00:11.4]} 38. Ng4 {[%clk 0:00:06.1]} 38... Rf5 {[%clk 0:00:11.2]} 39.
Ne3 {[%clk 0:00:06.5]} 39... R5f6 {[%clk 0:00:11.3]} 40. Rd1 {[%clk 0:00:02.3]}
40... Qa5 {[%clk 0:00:10.6]} 41. Rd2 {[%clk 0:00:02.3]} 41... Rh8 {[%clk
0:00:09.8]} 42. Rg4 {[%clk 0:00:01.6]} 42... Nh5 {[%clk 0:00:09.2]} 43. Rgg2
{[%clk 0:00:01.3]} 43... Nf4 {[%clk 0:00:08.6]} 44. Rg4 {[%clk 0:00:01.4]} 44...
Nh5 {[%clk 0:00:08.4]} 45. Rg1 {[%clk 0:00:01.6]} 45... Nf4 {[%clk 0:00:08.4]}
46. Rh1 {[%clk 0:00:02.1]} 46... Rhf8 {[%clk 0:00:07.7]} 47. Ng4 {[%clk
0:00:02.2]} 47... Rf5 {[%clk 0:00:07.6]} 48. Ne3 {[%clk 0:00:02.8]} 48... Re5
{[%clk 0:00:07.8]} 49. Ng4 {[%clk 0:00:03.1]} 49... Ref5 {[%clk 0:00:07.9]} 50.
Ne3 {[%clk 0:00:03.3]} 50... Re5 {[%clk 0:00:08.3]} 51. Nd1 {[%clk 0:00:04]}
51... Ref5 {[%clk 0:00:06.4]} 52. Nb2 {[%clk 0:00:04]} 52... Re5 {[%clk
0:00:05]} 53. Rhh2 {[%clk 0:00:04.1]} 53... Rff5 {[%clk 0:00:04.7]} 54. Rhf2
{[%clk 0:00:04.2]} 54... Re1 {[%clk 0:00:04.2]} 55. Nd3 {[%clk 0:00:03.4]} 55...
Nxd3 {[%clk 0:00:03.6]} 56. Qxd3 {[%clk 0:00:04.3]} 56... Rxf2 {[%clk
0:00:02.7]} 57. Rxf2 {[%clk 0:00:05.2]} 1-0

[Event "*** SCC Grand Prix: Titled Tuesday Blitz"]
[Site "Chess.com"]
[Date "2020.06.02"]
[Round "9"]
[White "Iljushin_Alexey"]
[Black "rpragchess"]
[Result "1-0"]
[WhiteElo "2693"]
[BlackElo "2854"]
[TimeControl "180+1"]
[EndTime "11:48:17 PDT"]
[Termination "Iljushin_Alexey won on time"]

1. d4 {[%clk 0:03:00.9]} 1... Nf6 {[%clk 0:02:58.4]} 2. c4 {[%clk 0:03:00.9]}
2... Nc6 {[%clk 0:02:55]} 3. d5 {[%clk 0:02:59.5]} 3... Ne5 {[%clk 0:02:54.1]}
4. e4 {[%clk 0:02:52.8]} 4... Ng6 {[%clk 0:02:51.3]} 5. h4 {[%clk 0:02:46.9]}
5... h5 {[%clk 0:02:50.2]} 6. Nf3 {[%clk 0:02:43.4]} 6... e5 {[%clk 0:02:49.7]}
7. Bd3 {[%clk 0:02:35.9]} 7... Bc5 {[%clk 0:02:44.6]} 8. Bg5 {[%clk 0:02:25.8]}
8... a5 {[%clk 0:02:43.7]} 9. Nc3 {[%clk 0:02:25]} 9... d6 {[%clk 0:02:43.9]}
10. Qd2 {[%clk 0:02:24]} 10... c6 {[%clk 0:02:32.9]} 11. O-O-O {[%clk 0:02:21]}
11... Bg4 {[%clk 0:02:32.2]} 12. Kb1 {[%clk 0:02:19.2]} 12... Qc7 {[%clk
0:02:30.6]} 13. Rc1 {[%clk 0:02:16.6]} 13... Nh7 {[%clk 0:02:17.2]} 14. Ne1
{[%clk 0:02:12]} 14... Nxg5 {[%clk 0:02:12]} 15. hxg5 {[%clk 0:02:09.8]} 15...
h4 {[%clk 0:02:03.7]} 16. f3 {[%clk 0:02:00.3]} 16... Bd7 {[%clk 0:02:03]} 17.
dxc6 {[%clk 0:02:00.2]} 17... bxc6 {[%clk 0:02:02.5]} 18. Na4 {[%clk 0:01:57.4]}
18... Bd4 {[%clk 0:01:37.6]} 19. Nc2 {[%clk 0:01:56.1]} 19... c5 {[%clk
0:01:36.6]} 20. Nc3 {[%clk 0:01:55.5]} 20... Bc6 {[%clk 0:01:34.8]} 21. Nxd4
{[%clk 0:01:53.2]} 21... cxd4 {[%clk 0:01:29.8]} 22. Nb5 {[%clk 0:01:49.8]}
22... Qd7 {[%clk 0:01:29.2]} 23. g3 {[%clk 0:01:47.2]} 23... hxg3 {[%clk
0:01:23.7]} 24. Rxh8+ {[%clk 0:01:46.4]} 24... Nxh8 {[%clk 0:01:24.2]} 25. f4
{[%clk 0:01:44.1]} 25... Ng6 {[%clk 0:01:14.9]} 26. f5 {[%clk 0:01:38.4]} 26...
Nf4 {[%clk 0:01:14.9]} 27. Rg1 {[%clk 0:01:28]} 27... g2 {[%clk 0:01:13.3]} 28.
Rxg2 {[%clk 0:01:27.8]} 28... Nxg2 {[%clk 0:01:11.6]} 29. Qxg2 {[%clk
0:01:27.8]} 29... O-O-O {[%clk 0:01:07.5]} 30. a4 {[%clk 0:01:26.5]} 30... Kb7
{[%clk 0:01:06.1]} 31. Qd2 {[%clk 0:01:22.6]} 31... Ra8 {[%clk 0:00:55.1]} 32.
c5 {[%clk 0:01:12.3]} 32... dxc5 {[%clk 0:00:53.9]} 33. Qc2 {[%clk 0:01:12.8]}
33... Qe7 {[%clk 0:00:48.6]} 34. f6 {[%clk 0:01:12.9]} 34... gxf6 {[%clk
0:00:48.4]} 35. gxf6 {[%clk 0:01:12.5]} 35... Qf8 {[%clk 0:00:47.8]} 36. Bc4
{[%clk 0:01:09.7]} 36... Ra6 {[%clk 0:00:42.9]} 37. Bd5 {[%clk 0:01:08.9]} 37...
Rb6 {[%clk 0:00:36]} 38. Qc4 {[%clk 0:01:06.6]} 38... Qd8 {[%clk 0:00:31]} 39.
Bxc6+ {[%clk 0:01:04.2]} 39... Kxc6 {[%clk 0:00:16.7]} 40. Qxf7 {[%clk
0:01:02.6]} 40... Qd7 {[%clk 0:00:16.7]} 41. Qc4 {[%clk 0:00:51.6]} 41... d3
{[%clk 0:00:13.1]} 42. Kc1 {[%clk 0:00:51.2]} 42... d2+ {[%clk 0:00:11.5]} 43.
Kd1 {[%clk 0:00:51.6]} 43... Rb8 {[%clk 0:00:10.7]} 44. Nc3 {[%clk 0:00:44.8]}
44... Rxb2 {[%clk 0:00:07.5]} 45. Qa6+ {[%clk 0:00:43.3]} 45... Rb6 {[%clk
0:00:07.5]} 46. Qa8+ {[%clk 0:00:43.1]} 46... Rb7 {[%clk 0:00:05.7]} 47. Qa6+
{[%clk 0:00:42.7]} 47... Kc7 {[%clk 0:00:03.6]} 48. Nd5+ {[%clk 0:00:41.6]}
48... Kb8 {[%clk 0:00:03.9]} 49. Kxd2 {[%clk 0:00:41]} 49... Qd8 {[%clk
0:00:02.2]} 50. Kc3 {[%clk 0:00:40]} 50... Qe8 {[%clk 0:00:01.8]} 51. Qd6+
{[%clk 0:00:38.6]} 51... Ka7 {[%clk 0:00:02.3]} 52. Qxc5+ {[%clk 0:00:37.7]}
52... Kb8 {[%clk 0:00:03]} 53. Qd6+ {[%clk 0:00:37.9]} 53... Ka7 {[%clk
0:00:03.6]} 54. Qc5+ {[%clk 0:00:37]} 54... Kb8 {[%clk 0:00:03.7]} 55. Qxa5
{[%clk 0:00:35.3]} 55... Qc6+ {[%clk 0:00:03.1]} 56. Kd3 {[%clk 0:00:31.2]}
56... Rb3+ {[%clk 0:00:03.2]} 57. Nc3 {[%clk 0:00:31.3]} 57... Qd6+ {[%clk
0:00:02.4]} 58. Kc2 {[%clk 0:00:27.8]} 58... Rb6 {[%clk 0:00:01.7]} 59. f7
{[%clk 0:00:26.6]} 1-0

[Event "*** SCC Grand Prix: Titled Tuesday Blitz"]
[Site "Chess.com"]
[Date "2020.06.02"]
[Round "9"]
[White "elohunter1999"]
[Black "MathiasWomacka"]
[Result "1-0"]
[WhiteElo "2506"]
[BlackElo "2382"]
[TimeControl "180+1"]
[EndTime "11:48:24 PDT"]
[Termination "elohunter1999 won on time"]

1. e4 {[%clk 0:03:00.9]} 1... c5 {[%clk 0:02:58.4]} 2. Nf3 {[%clk 0:03:01]} 2...
d6 {[%clk 0:02:58.6]} 3. Bb5+ {[%clk 0:03:01.1]} 3... Nd7 {[%clk 0:02:58]} 4. a4
{[%clk 0:03:01.1]} 4... Nf6 {[%clk 0:02:56]} 5. Nc3 {[%clk 0:03:00.6]} 5... g6
{[%clk 0:02:52.4]} 6. O-O {[%clk 0:02:57.4]} 6... Bg7 {[%clk 0:02:51.9]} 7. d4
{[%clk 0:02:22.1]} 7... cxd4 {[%clk 0:02:51.1]} 8. Nxd4 {[%clk 0:02:20.9]} 8...
O-O {[%clk 0:02:50.7]} 9. Re1 {[%clk 0:02:17.7]} 9... a6 {[%clk 0:02:48.5]} 10.
Bf1 {[%clk 0:02:17.3]} 10... Qc7 {[%clk 0:02:40.3]} 11. Bg5 {[%clk 0:02:15.7]}
11... b6 {[%clk 0:02:34.8]} 12. Nd5 {[%clk 0:02:01]} 12... Nxd5 {[%clk
0:02:34.8]} 13. exd5 {[%clk 0:02:00.8]} 13... Nf6 {[%clk 0:02:35.3]} 14. c4
{[%clk 0:01:53.2]} 14... Re8 {[%clk 0:02:17.8]} 15. Qd2 {[%clk 0:01:50.7]} 15...
Bd7 {[%clk 0:02:05.7]} 16. b3 {[%clk 0:01:41.1]} 16... a5 {[%clk 0:02:01.3]} 17.
Re3 {[%clk 0:01:36.5]} 17... Qc5 {[%clk 0:02:00.7]} 18. Rd1 {[%clk 0:01:35.1]}
18... h6 {[%clk 0:01:46.1]} 19. Bh4 {[%clk 0:01:28.5]} 19... g5 {[%clk
0:01:38.9]} 20. Bg3 {[%clk 0:01:28.5]} 20... Nh5 {[%clk 0:01:38.8]} 21. Be2
{[%clk 0:01:23]} 21... Nxg3 {[%clk 0:01:38.2]} 22. hxg3 {[%clk 0:01:21.5]} 22...
Bf6 {[%clk 0:01:33.9]} 23. g4 {[%clk 0:01:09.6]} 23... Rad8 {[%clk 0:01:13]} 24.
Rh3 {[%clk 0:01:04.2]} 24... Kg7 {[%clk 0:01:07.5]} 25. Qd3 {[%clk 0:01:04.1]}
25... e6 {[%clk 0:00:42.6]} 26. dxe6 {[%clk 0:01:00]} 26... fxe6 {[%clk
0:00:43.5]} 27. Qe4 {[%clk 0:00:50.2]} 27... d5 {[%clk 0:00:30.1]} 28. Qe3
{[%clk 0:00:27.4]} 28... e5 {[%clk 0:00:27.6]} 29. Nf5+ {[%clk 0:00:25.3]} 29...
Bxf5 {[%clk 0:00:27.5]} 30. Qxc5 {[%clk 0:00:17.1]} 30... bxc5 {[%clk
0:00:28.4]} 31. gxf5 {[%clk 0:00:17.2]} 31... d4 {[%clk 0:00:22.9]} 32. Bd3
{[%clk 0:00:17.3]} 32... e4 {[%clk 0:00:22.9]} 33. Bb1 {[%clk 0:00:15.6]} 33...
Rb8 {[%clk 0:00:15.9]} 34. Re1 {[%clk 0:00:15.7]} 34... e3 {[%clk 0:00:15.4]}
35. fxe3 {[%clk 0:00:16]} 35... dxe3 {[%clk 0:00:15.4]} 36. Bc2 {[%clk
0:00:15.9]} 36... Bd4 {[%clk 0:00:15.2]} 37. Re2 {[%clk 0:00:15.9]} 37... Re5
{[%clk 0:00:14.9]} 38. Rf3 {[%clk 0:00:15.8]} 38... Rf8 {[%clk 0:00:14.2]} 39.
g4 {[%clk 0:00:16.1]} 39... Rf6 {[%clk 0:00:13.3]} 40. Kg2 {[%clk 0:00:16]}
40... Kf8 {[%clk 0:00:13.4]} 41. Rh3 {[%clk 0:00:15.7]} 41... Ke7 {[%clk
0:00:13.1]} 42. Kf3 {[%clk 0:00:16]} 42... Kd6 {[%clk 0:00:13.4]} 43. Reh2
{[%clk 0:00:15.9]} 43... e2 {[%clk 0:00:12]} 44. Rxe2 {[%clk 0:00:15.5]} 44...
Rxe2 {[%clk 0:00:12.1]} 45. Kxe2 {[%clk 0:00:16.4]} 45... Ke5 {[%clk 0:00:11.2]}
46. Kf3 {[%clk 0:00:15.4]} 46... Bb2 {[%clk 0:00:10.1]} 47. Rh1 {[%clk
0:00:15.2]} 47... Bd4 {[%clk 0:00:09.8]} 48. Re1+ {[%clk 0:00:15]} 48... Kd6
{[%clk 0:00:10]} 49. Be4 {[%clk 0:00:15.1]} 49... Rf8 {[%clk 0:00:09.2]} 50. Bd5
{[%clk 0:00:14.9]} 50... Be5 {[%clk 0:00:08.1]} 51. Rh1 {[%clk 0:00:14.4]} 51...
Bg7 {[%clk 0:00:07.2]} 52. Re1 {[%clk 0:00:13.7]} 52... Be5 {[%clk 0:00:06.4]}
53. Kg2 {[%clk 0:00:13.5]} 53... Rb8 {[%clk 0:00:06.1]} 54. f6 {[%clk
0:00:13.5]} 54... Rxb3 {[%clk 0:00:04.9]} 55. f7 {[%clk 0:00:12.1]} 55... Rb2+
{[%clk 0:00:04.8]} 56. Kf3 {[%clk 0:00:11.6]} 56... Bd4 {[%clk 0:00:04.6]} 57.
f8=Q+ {[%clk 0:00:11.4]} 1-0

[Event "*** SCC Grand Prix: Titled Tuesday Blitz"]
[Site "Chess.com"]
[Date "2020.06.02"]
[Round "9"]
[White "guillembaches"]
[Black "Abund"]
[Result "1-0"]
[WhiteElo "2455"]
[BlackElo "2585"]
[TimeControl "180+1"]
[EndTime "11:48:27 PDT"]
[Termination "guillembaches won on time"]

1. e4 {[%clk 0:03:00.9]} 1... c5 {[%clk 0:02:59.9]} 2. Nf3 {[%clk 0:03:00.9]}
2... Nc6 {[%clk 0:03:00.3]} 3. d4 {[%clk 0:03:00.4]} 3... cxd4 {[%clk
0:03:01.2]} 4. Nxd4 {[%clk 0:03:01.3]} 4... Nf6 {[%clk 0:03:01.9]} 5. Nc3 {[%clk
0:03:01.6]} 5... e5 {[%clk 0:03:02.3]} 6. Ndb5 {[%clk 0:03:02]} 6... d6 {[%clk
0:03:02.7]} 7. Bg5 {[%clk 0:03:02.4]} 7... a6 {[%clk 0:03:02.9]} 8. Na3 {[%clk
0:03:02.8]} 8... b5 {[%clk 0:03:03.3]} 9. Nd5 {[%clk 0:03:03.2]} 9... Be7 {[%clk
0:03:03.6]} 10. Bxf6 {[%clk 0:03:03.6]} 10... Bxf6 {[%clk 0:03:04.5]} 11. c4
{[%clk 0:03:04]} 11... b4 {[%clk 0:03:04.8]} 12. Nc2 {[%clk 0:03:04.4]} 12...
O-O {[%clk 0:03:05.1]} 13. Be2 {[%clk 0:03:04.6]} 13... a5 {[%clk 0:03:02.6]}
14. O-O {[%clk 0:03:04.4]} 14... Bg5 {[%clk 0:03:03.2]} 15. Qd3 {[%clk
0:03:01.2]} 15... Be6 {[%clk 0:02:47.3]} 16. Rad1 {[%clk 0:02:59.7]} 16... Ra7
{[%clk 0:02:42.9]} 17. h3 {[%clk 0:02:56.1]} 17... Qb8 {[%clk 0:02:28.6]} 18. b3
{[%clk 0:02:49.7]} 18... a4 {[%clk 0:02:19.5]} 19. Bg4 {[%clk 0:02:46.6]} 19...
axb3 {[%clk 0:02:16.3]} 20. axb3 {[%clk 0:02:46]} 20... Bd8 {[%clk 0:02:10.3]}
21. Nde3 {[%clk 0:02:36.9]} 21... Rd7 {[%clk 0:01:50.4]} 22. Ra1 {[%clk
0:02:14.6]} 22... Bb6 {[%clk 0:01:44]} 23. Ra6 {[%clk 0:02:03.9]} 23... Qb7
{[%clk 0:01:43.7]} 24. Rfa1 {[%clk 0:02:00.7]} 24... Bc5 {[%clk 0:01:34.7]} 25.
Nd5 {[%clk 0:01:57.1]} 25... h6 {[%clk 0:01:07.3]} 26. Bf5 {[%clk 0:01:51.2]}
26... Kh8 {[%clk 0:01:03.3]} 27. g3 {[%clk 0:01:43.4]} 27... Rdd8 {[%clk
0:01:03.3]} 28. Kg2 {[%clk 0:01:40.1]} 28... Ra8 {[%clk 0:00:58.9]} 29. Rxa8
{[%clk 0:01:37]} 29... Rxa8 {[%clk 0:00:58.9]} 30. Rd1 {[%clk 0:01:27.3]} 30...
g6 {[%clk 0:00:49.4]} 31. Bg4 {[%clk 0:01:22.9]} 31... h5 {[%clk 0:00:41.8]} 32.
Bf3 {[%clk 0:01:17.3]} 32... Kg7 {[%clk 0:00:38.1]} 33. h4 {[%clk 0:01:13.7]}
33... Ra2 {[%clk 0:00:34.3]} 34. Rd2 {[%clk 0:01:11.7]} 34... Qa7 {[%clk
0:00:26.6]} 35. Nde3 {[%clk 0:00:54.8]} 35... Rb2 {[%clk 0:00:21.1]} 36. Ne1
{[%clk 0:00:48.2]} 36... Rxd2 {[%clk 0:00:19.3]} 37. Qxd2 {[%clk 0:00:48.6]}
37... Nd4 {[%clk 0:00:19.1]} 38. Bd1 {[%clk 0:00:45.1]} 38... Qa3 {[%clk
0:00:17.8]} 39. Qd3 {[%clk 0:00:42]} 39... Qb2 {[%clk 0:00:17.5]} 40. Kf1 {[%clk
0:00:38.1]} 40... Bh3+ {[%clk 0:00:17.1]} 41. Kg1 {[%clk 0:00:33.6]} 41... Bc8
{[%clk 0:00:16.3]} 42. Nf3 {[%clk 0:00:20.7]} 42... Bb7 {[%clk 0:00:10.3]} 43.
Nxd4 {[%clk 0:00:20.3]} 43... Bxd4 {[%clk 0:00:10.1]} 44. Qc2 {[%clk 0:00:19.2]}
44... Qa1 {[%clk 0:00:07.3]} 45. Kg2 {[%clk 0:00:18.2]} 45... Bc5 {[%clk
0:00:06.4]} 46. Bf3 {[%clk 0:00:18.2]} 46... Bd4 {[%clk 0:00:06.4]} 47. Nd5
{[%clk 0:00:18]} 47... Qe1 {[%clk 0:00:05.7]} 48. Qe2 {[%clk 0:00:17.4]} 48...
Qb1 {[%clk 0:00:05.8]} 49. Qd1 {[%clk 0:00:16.4]} 49... Qb2 {[%clk 0:00:06.2]}
50. Qe2 {[%clk 0:00:13.8]} 50... Qxb3 {[%clk 0:00:06.5]} 51. Ne3 {[%clk
0:00:12.9]} 51... Qc3 {[%clk 0:00:04.6]} 52. Nd1 {[%clk 0:00:12.1]} 52... Qa1
{[%clk 0:00:04.4]} 53. Bxh5 {[%clk 0:00:10.6]} 53... b3 {[%clk 0:00:03.3]} 54.
Bxg6 {[%clk 0:00:09.6]} 54... fxg6 {[%clk 0:00:03]} 55. Qg4 {[%clk 0:00:09.8]}
55... Bc6 {[%clk 0:00:01.3]} 56. h5 {[%clk 0:00:09.5]} 56... Be8 {[%clk
0:00:01.9]} 57. h6+ {[%clk 0:00:09.3]} 57... Kh7 {[%clk 0:00:02]} 58. Qh4 {[%clk
0:00:09.9]} 58... Bf7 {[%clk 0:00:02.1]} 59. Qe7 {[%clk 0:00:10.8]} 59... Kxh6
{[%clk 0:00:02.4]} 60. Qh4+ {[%clk 0:00:10.8]} 1-0

[Event "*** SCC Grand Prix: Titled Tuesday Blitz"]
[Site "Chess.com"]
[Date "2020.06.02"]
[Round "9"]
[White "Chuchofrio1"]
[Black "profofchess"]
[Result "1-0"]
[WhiteElo "2295"]
[BlackElo "2443"]
[TimeControl "180+1"]
[EndTime "11:48:32 PDT"]
[Termination "Chuchofrio1 won on time"]

1. d4 {[%clk 0:03:00.9]} 1... Nf6 {[%clk 0:02:59.8]} 2. c4 {[%clk 0:03:00.6]}
2... e6 {[%clk 0:02:59.6]} 3. Nc3 {[%clk 0:03:00.4]} 3... Bb4 {[%clk 0:02:59.7]}
4. Qc2 {[%clk 0:03:00.5]} 4... O-O {[%clk 0:02:56.5]} 5. Nf3 {[%clk 0:02:59.2]}
5... b6 {[%clk 0:02:50]} 6. e4 {[%clk 0:02:55.9]} 6... d5 {[%clk 0:02:37.5]} 7.
e5 {[%clk 0:02:53.8]} 7... Ne4 {[%clk 0:02:37.2]} 8. Bd3 {[%clk 0:02:49.7]} 8...
Bb7 {[%clk 0:02:34.6]} 9. cxd5 {[%clk 0:02:48.7]} 9... exd5 {[%clk 0:02:31.6]}
10. O-O {[%clk 0:02:48.3]} 10... Bxc3 {[%clk 0:02:15.9]} 11. bxc3 {[%clk
0:02:46.4]} 11... f5 {[%clk 0:02:09.6]} 12. Ne1 {[%clk 0:02:39.8]} 12... Ba6
{[%clk 0:01:57.7]} 13. f3 {[%clk 0:02:19.8]} 13... Bxd3 {[%clk 0:01:55.6]} 14.
Nxd3 {[%clk 0:02:12.4]} 14... Ng5 {[%clk 0:01:54]} 15. Bxg5 {[%clk 0:02:10.1]}
15... Qxg5 {[%clk 0:01:53.5]} 16. f4 {[%clk 0:02:09.8]} 16... Qe7 {[%clk
0:01:51.6]} 17. a4 {[%clk 0:02:03.4]} 17... Nc6 {[%clk 0:01:47.8]} 18. Rae1
{[%clk 0:01:58.7]} 18... Qe6 {[%clk 0:01:44.5]} 19. Nb4 {[%clk 0:01:55.2]} 19...
Na5 {[%clk 0:01:42.9]} 20. g4 {[%clk 0:01:41.4]} 20... g6 {[%clk 0:01:30.7]} 21.
Qg2 {[%clk 0:01:39.9]} 21... Rad8 {[%clk 0:01:28.2]} 22. h3 {[%clk 0:01:17]}
22... c5 {[%clk 0:01:25.7]} 23. Nd3 {[%clk 0:01:13.7]} 23... cxd4 {[%clk
0:01:21.3]} 24. cxd4 {[%clk 0:01:13.3]} 24... Rc8 {[%clk 0:01:16.9]} 25. Rc1
{[%clk 0:01:11]} 25... Rc4 {[%clk 0:01:12.4]} 26. Rxc4 {[%clk 0:01:07.6]} 26...
Nxc4 {[%clk 0:01:13.3]} 27. Qe2 {[%clk 0:00:44]} 27... Re8 {[%clk 0:00:47.2]}
28. Kh2 {[%clk 0:00:40.6]} 28... Kh8 {[%clk 0:00:45.5]} 29. Rg1 {[%clk
0:00:38.9]} 29... Rc8 {[%clk 0:00:42.4]} 30. gxf5 {[%clk 0:00:32.1]} 30... Qxf5
{[%clk 0:00:42]} 31. Rg5 {[%clk 0:00:31]} 31... Qe4 {[%clk 0:00:40.3]} 32. Qxe4
{[%clk 0:00:30.2]} 32... dxe4 {[%clk 0:00:41.2]} 33. Nb4 {[%clk 0:00:25.9]}
33... Kg7 {[%clk 0:00:31.9]} 34. f5 {[%clk 0:00:25.9]} 34... Nd2 {[%clk
0:00:29]} 35. f6+ {[%clk 0:00:25.3]} 35... Kf7 {[%clk 0:00:28.8]} 36. Rg2 {[%clk
0:00:24.5]} 36... e3 {[%clk 0:00:28.2]} 37. Nd5 {[%clk 0:00:22.2]} 37... Nf3+
{[%clk 0:00:21.7]} 38. Kg3 {[%clk 0:00:21.1]} 38... Nxd4 {[%clk 0:00:20.3]} 39.
Nxe3 {[%clk 0:00:20.8]} 39... Rc5 {[%clk 0:00:17.3]} 40. Ng4 {[%clk 0:00:19.5]}
40... Nf5+ {[%clk 0:00:15.3]} 41. Kh2 {[%clk 0:00:18.8]} 41... h5 {[%clk
0:00:14.9]} 42. Nf2 {[%clk 0:00:16.9]} 42... Rxe5 {[%clk 0:00:14.2]} 43. Nd3
{[%clk 0:00:17.6]} 43... Re3 {[%clk 0:00:13.8]} 44. Nf4 {[%clk 0:00:17.2]} 44...
Nh4 {[%clk 0:00:11.9]} 45. Rc2 {[%clk 0:00:15.9]} 45... Kxf6 {[%clk 0:00:11.5]}
46. Nd5+ {[%clk 0:00:14.1]} 46... Ke5 {[%clk 0:00:10.8]} 47. Nxe3 {[%clk
0:00:14.6]} 47... Kd4 {[%clk 0:00:11.1]} 48. Ng2 {[%clk 0:00:14.3]} 48... Nf3+
{[%clk 0:00:10.6]} 49. Kg3 {[%clk 0:00:14.5]} 49... Ne5 {[%clk 0:00:10.5]} 50.
Rc7 {[%clk 0:00:14.1]} 50... a5 {[%clk 0:00:08.4]} 51. Rb7 {[%clk 0:00:13.5]}
51... Nc4 {[%clk 0:00:07]} 52. Nf4 {[%clk 0:00:11.7]} 52... Kc5 {[%clk
0:00:05.5]} 53. Nxg6 {[%clk 0:00:10]} 53... Nb2 {[%clk 0:00:05.7]} 54. Nf4
{[%clk 0:00:09.2]} 54... Nxa4 {[%clk 0:00:05.8]} 55. Nxh5 {[%clk 0:00:09.3]}
55... Nc3 {[%clk 0:00:05.9]} 56. Nf4 {[%clk 0:00:09.4]} 56... a4 {[%clk
0:00:05.5]} 57. h4 {[%clk 0:00:08.8]} 57... a3 {[%clk 0:00:04.9]} 58. Nd3+
{[%clk 0:00:08.8]} 58... Kc4 {[%clk 0:00:04.1]} 59. Nc1 {[%clk 0:00:08.7]} 59...
b5 {[%clk 0:00:03.4]} 60. h5 {[%clk 0:00:07.6]} 60... b4 {[%clk 0:00:02.1]} 61.
h6 {[%clk 0:00:07.7]} 61... Ne4+ {[%clk 0:00:02.3]} 62. Kf4 {[%clk 0:00:06.6]}
62... Nf6 {[%clk 0:00:02.8]} 63. Kf5 {[%clk 0:00:06.2]} 63... b3 {[%clk
0:00:01.8]} 64. Kxf6 {[%clk 0:00:06]} 1-0